Cogmind - Beta 10.2 @@@ ROGUE MODE // 2021.03.01 @ 16:15:43 Player: Pitt Result: Destroyed by Y-45 Defender with Beam Rifle Performance ------------- Evolutions (1) 500 Regions Visited (3) 600 Robots Destroyed (41) 205 Value Destroyed (992) 992 Prototype IDs (1) 20 Alien Tech Used (0) 0 Bonus (16) 16 TOTAL SCORE: 2333 Bonus ------- High Alert Combat Kills 16 Cogmind --------- Core Integrity 0/400 Matter 151/300 Energy 280/280 System Corruption 0% Temperature Cool (9) Movement Treading (200) Ox2 Location -9/Materials Parts ------- > --- POWER (1) -------- Heavy Ion Engine > --- PROPULSION (4) --- Light Treads Aluminum Leg > --- UTILITY (2) ------ High-capacity Storage Unit Utility Shielding > --- WEAPON (2) ------- Heavy Assault Rifle > --- INVENTORY (12) --- Ion Engine Light Ion Engine High-capacity Storage Unit Structural Scanner Sensor Array Signal Interpreter Seismic Analyzer Terrain Scan Processor Mini Grenade Launcher Datajack Mining Laser Peak State ------------ > --- POWER ------------ Heavy Ion Engine > --- PROPULSION ------- Aluminum Leg Aluminum Leg Wheel Wheel > --- UTILITY ---------- High-capacity Storage Unit Transport Network Coupler > --- WEAPON ----------- EM Shotgun EM Shotgun > --- INVENTORY -------- Ion Engine Light Ion Engine High-capacity Storage Unit Structural Scanner Sensor Array Signal Interpreter Seismic Analyzer Terrain Scan Processor Utility Shielding Mini Grenade Launcher Datajack Mining Laser [Rating: 14] Favorites ----------- Power Ion Engine Engine Ion Engine Propulsion Aluminum Leg Treads Light Treads Leg Aluminum Leg Wheel Wheel Flight Unit Flight Unit Utility High-capacity Storage Unit Device Improved Terrain Scanner Storage High-capacity Storage Unit Processor Transport Network Coupler Protection Light Armor Plating Weapon Medium Laser Energy Gun Medium Laser Ballistic Gun Assault Rifle Launcher Mini Grenade Launcher Special Weapon Mining Laser Special Melee Weapon Datajack Build | -11 -10 -10 -9 ------- Run | Scr Mat Min Mat Slots Evolved 2 | . . . 2 Power . | . . . . Propulsion 2 | . . . 2 Utility . | . . . . Weapon . | . . . . Parts Attached 48 | 7 7 2 32 Power 3 | 1 . . 2 Engine 3 | 1 . . 2 Core . | . . . . Reactor . | . . . . Propulsion 11 | 2 . . 9 Treads 1 | . . . 1 Leg 5 | 2 . . 3 Wheel 4 | . . . 4 Hover . | . . . . Flight 1 | . . . 1 Utility 9 | 2 2 1 4 Device 4 | 1 1 1 1 Storage 2 | 1 1 . . Processor 1 | . . . 1 Hackware . | . . . . Protection 2 | . . . 2 Artifact . | . . . . Weapon 25 | 2 5 1 17 Energy Gun 11 | 1 2 . 8 Energy Cannon . | . . . . Ballistic Gun 8 | 1 1 . 6 Ballistic Cannon . | . . . . Launcher 3 | . . . 3 Special Weapon 2 | . 2 . . Impact Weapon . | . . . . Slashing Weapon . | . . . . Piercing Weapon . | . . . . Special Melee Weapon 1 | . . 1 . Unidentified Prototypes 1 | . . . 1 Parts Lost 18 | . . . 18 Power 1 | . . . 1 Propulsion 7 | . . . 7 Utility 3 | . . . 3 Weapon 7 | . . . 7 Highest Loss Streak 7 | . . . 7 Average Slot Usage (%) 91 | . 100 100 77 Engine 12 | . 14 14 9 Leg 23 | . 28 28 15 Wheel 3 | . . . 10 Device 10 | . 14 14 4 Storage 12 | . 14 14 11 Processor 1 | . . . 3 Energy Gun 12 | . 16 14 7 Ballistic Gun 8 | . 6 13 7 Special Weapon 2 | . 5 . . Naked Turns . | . . . . Heaviest Build 49 | 14 42 42 49 Greatest Support 30 | 20 20 20 30 Greatest Overweight (x) 12 | 1 2 2 12 Average Overweight (x) 1 | . 1 2 1 Largest Inventory Capacity 12 | 6 12 12 12 Average Capacity 11 | 5 11 12 12 Most Carried 12 | 6 12 12 12 Average Carried 10 | 2 9 12 11 Final Capacity 12 | 6 12 12 12 Final Carried 12 | 5 12 12 11 Class Distribution -------------------- 84% | Mutant 15% | Scavenger-Mutant Dominant Class ---------------- Mutant | -10/Materials Mutant | -10/Mines Scavenger-Mutant | -9/Materials Resources | -11 -10 -10 -9 ----------- Run | Scr Mat Min Mat Matter Collected 791 | 133 135 114 409 Remotely . | . . . . Salvage Created 1184 | 48 147 . 989 Parts 81 | 12 10 . 59 Haulers Intercepted 2 | . . . 2 Recyclers Shooed . | . . . . Parts Field Recycled . | . . . . Retrieved Matter . | . . . . Parts Self-Destructed . | . . . . Prevented . | . . . . Kills | -11 -10 -10 -9 ------- Run | Scr Mat Min Mat Combat Hostiles Destroyed 28 | . 5 . 23 Guns 17 | . 5 . 12 AOE 11 | . . . 11 Classes Destroyed 9 | 1 3 . 5 Worker 2 | . . . 2 Builder 2 | . . . 2 Tunneler 3 | 3 . . . Hauler 2 | . . . 2 Recycler 2 | . . . 2 Watcher 2 | . 1 . 1 Swarmer 6 | . 3 . 3 Grunt 18 | . 2 . 16 Sentry 4 | . . . 4 Best Kill Streak 17 | 2 3 . 17 Combat Bots Only 12 | . 3 . 12 Max Kills in Single Turn 4 | 1 1 . 4 Gunslinging . | . . . . Exploded 2 | . . . 2 Melee . | . . . . Uniques/NPCs Destroyed . | . . . . Combat | -11 -10 -10 -9 -------- Run | Scr Mat Min Mat Damage Taken 2093 | . 91 . 2002 Core 411 | . 9 . 402 Absorbed by Shields . | . . . . Core Remaining (%) 98 | 100 . 96 . Volleys Fired 99 | 7 20 . 72 Largest 2 | 2 2 . 2 Hottest 100 | 70 100 . 90 Shots Fired 127 | 14 30 . 83 Gun 108 | 14 27 . 67 Cannon . | . . . . Launcher 16 | . . . 16 Special 3 | . 3 . . Kinetic 57 | 7 6 . 44 Thermal 37 | 7 24 . 6 Explosive 16 | . . . 16 Electromagnetic 17 | . . . 17 Robot Hit Streak 9 | 2 3 . 9 Robot Miss Streak 4 | 2 3 . 4 Penetration Max . | . . . . Secondary Targets 3 | . . . 3 Max Gunslinging Chain 1 | . . . 1 Shots Hit Robots 76 | 6 14 2 54 Core Hits 70 | 3 8 . 59 Critical Hits 1 | . . . 1 Critical Kills . | . . . . Critical Parts Destroyed 1 | . . . 1 Melee Attacks 2 | . . 2 . Impact . | . . . . Slashing . | . . . . Piercing . | . . . . Sneak Attacks 2 | . . 2 . Combat Hostiles . | . . . . Follow-up Attacks . | . . . . Damage Inflicted 2328 | 83 175 . 2070 Guns 1041 | 83 175 . 783 Cannons . | . . . . Explosions 1287 | . . . 1287 Melee . | . . . . Ramming . | . . . . Kinetic 556 | 33 14 . 509 Thermal 535 | 50 161 . 324 Explosive 1034 | . . . 1034 Electromagnetic 203 | . . . 203 Impact . | . . . . Slashing . | . . . . Piercing . | . . . . Highest Corruption . | . . . . Average Corruption . | . . . . Corruption Purged . | . . . . Overload Shots . | . . . . Overflow Damage 158 | . . . 158 Projectiles . | . . . . Explosions 158 | . . . 158 Melee . | . . . . Knockbacks . | . . . . Impact . | . . . . Kinetic . | . . . . Secondary . | . . . . Self-Inflicted Damage 23 | . . . 23 Shots 1 | . . . 1 Rammed . | . . . . Targets Rammed . | . . . . Kicked . | . . . . Crushed . | . . . . Highest Temperature 168 | 18 168 . 90 Average Temperature 31 | 9 41 . 25 Received Heat Transfer 786 | . 12 . 774 Siege Activations . | . . . . Robots Corrupted . | . . . . Combat Hostiles . | . . . . Parts Fried 1 | . . . 1 Impact Corruptions . | . . . . Robots Melted . | . . . . Combat Hostiles . | . . . . Parts Melted 1 | . 1 . . Heat Transferred 977 | 148 481 . 348 Parts Sabotaged . | . . . . Parts Stolen . | . . . . Parts Stripped . | . . . . Power Chain Reactions . | . . . . Missiles Intercepted . | . . . . Alert | -11 -10 -10 -9 ------- Run | Scr Mat Min Mat Peak Influence 468 | 15 90 27 468 Initial 27 | . 9 27 10 Average 121 | 5 45 27 282 Maximum Alert Level 2 | . . . 2 Low Security (%) 71 | 100 100 100 17 Level 1 23 | . . . 68 Level 2 4 | . . . 13 Level 3 . | . . . . Level 4 . | . . . . Level 5 . | . . . . High Security . | . . . . Max Security . | . . . . Squads Dispatched 5 | . 1 . 4 Investigation 1 | . . . 1 Extermination . | . . . . Reinforcement 4 | . 1 . 3 Assault . | . . . . Garrison . | . . . . Intercept . | . . . . Construction Impeded . | . . . . Haulers Reinforced . | . . . . Stealth | -11 -10 -10 -9 --------- Run | Scr Mat Min Mat Distress Signals 2 | . . . 2 Communications Jammed . | . . . . Distress Signals . | . . . . Times Spotted 49 | . 8 . 41 Peak Tracking Total 8 | . 3 . 8 Tactical Retreats . | . . . . Traps | -11 -10 -10 -9 ------- Run | Scr Mat Min Mat Traps Triggered 1 | . . . 1 Indirectly . | . . . . Trap Hack Attempts . | . . . . Triggered . | . . . . Disarmed . | . . . . Reprogrammed . | . . . . Reused . | . . . . Traps Extracted . | . . . . Installed . | . . . . Triggered . | . . . . Machines | -11 -10 -10 -9 ---------- Run | Scr Mat Min Mat Machines Disabled 2 | . . . 2 Max in Single Turn 2 | . . . 2 Machines Sabotaged . | . . . . Garrisons Compromised . | . . . . Overloaded Fab Kills . | . . . . Fab Network Shutdowns . | . . . . Hacking | -11 -10 -10 -9 --------- Run | Scr Mat Min Mat Machines Accessed 7 | . 4 . 3 Terminals 5 | . 3 . 2 Fabricators . | . . . . Repair Stations 1 | . . . 1 Recycling Units 1 | . 1 . . Scanalyzers . | . . . . Garrison Access . | . . . . Total Hacks 17 | . 11 . 6 Successful 7 | . 7 . . Failed 10 | . 4 . 6 Catastrophic . | . . . . Database Lockouts . | . . . . Manual 9 | . 8 . 1 Terminals 11 | . 7 . 4 Fabricators . | . . . . Repair Stations 2 | . . . 2 Recycling Units 4 | . 4 . . Scanalyzers . | . . . . Garrison Access . | . . . . Terminal Hacks 1 | . 1 . . Locate Traps 1 | . 1 . . Fabricator Hacks . | . . . . Repair Station Hacks . | . . . . Recycling Unit Hacks 1 | . 1 . . Retrieve Components 1 | . 1 . . Scanalyzer . | . . . . Garrison Access Hacks . | . . . . Unauthorized Hacks 5 | . 5 . . Terminals 3 | . 3 . . Botnet 3 | . 3 . . Fabricators . | . . . . Repair Stations . | . . . . Recycling Units 2 | . 2 . . Reject 1 | . 1 . . Mask 1 | . 1 . . Scanalyzers . | . . . . Garrison Access . | . . . . Data Cores Recovered . | . . . . Used . | . . . . Hacking Detections 6 | . 3 . 3 Full Trace Events 1 | . . . 1 Feedback Events . | . . . . Feedback Blocked . | . . . . Robot Schematics Acquired . | . . . . Robots Built . | . . . . Matter . | . . . . Time . | . . . . Total Robot Build Rating . | . . . . Part Schematics Acquired . | . . . . Parts Built . | . . . . Matter . | . . . . Time . | . . . . Total Part Build Rating . | . . . . Parts Repaired . | . . . . Time . | . . . . Parts Recycled . | . . . . Recycled Matter . | . . . . Retrieved Matter . | . . . . Retrieved Components 9 | . 9 . . Parts Scanalyzed . | . . . . Part Schematics Acquired . | . . . . Parts Damaged . | . . . . Bothacking | -11 -10 -10 -9 ------------ Run | Scr Mat Min Mat Used RIF Installer . | . . . . Robots Hacked 1 | . . 1 . Non-combat 1 | . . 1 . Combat . | . . . . Robot Hacks Applied 2 | . . 2 . parse_system 1 | . . 1 . no_distress 1 | . . 1 . Relay Couplers Released . | . . . . Robots Rewired . | . . . . Allies Hacked . | . . . . Hacks Repelled . | . . . . Allies | -11 -10 -10 -9 -------- Run | Scr Mat Min Mat Total Allies 2 | . . 2 . Largest Group 2 | . . 2 2 Highest-Rated Group 45 | . . 45 45 Highest-Rated Ally 31 | . . 31 31 Total Orders . | . . . . Ally Attacks 3 | . . . 3 Total Damage 65 | . . . 65 Kills . | . . . . Allies Corrupted . | . . . . Allies Melted . | . . . . Intel | -11 -10 -10 -9 ------- Run | Scr Mat Min Mat Robot Analysis Total . | . . . . Derelict Logs Recovered . | . . . . Drone Launches . | . . . . Drone Recoveries . | . . . . Exploration | -11 -10 -10 -9 ------------- Run | Scr Mat Min Mat Turns Passed 1651 | 106 679 293 573 Spaces Moved 713 | 60 276 152 225 Core 10 | 6 . . 4 Treads 17 | . . . 17 Legs 582 | 54 276 152 100 Wheels 101 | . . . 101 Hover . | . . . . Flight 3 | . . . 3 Fastest Speed 50 | 50 120 180 90 Average Speed 161 | 115 166 180 153 Slowest Speed 860 | 120 180 180 860 Overloaded Moves . | . . . . Propulsion Burnouts . | . . . . Robots Hopped . | . . . . Cave-ins Triggered . | . . . . Exploration Rate (%) 31 | 3 46 52 25 Regions Visited 3 Branch Regions 1 Pre-discovered Areas . | . . . . Known Exits Taken . | . . . . Unknown Exits Taken 3 | 1 1 1 . Scrap Searched 1 | . . 1 . Spaces Dug 18 | . 3 . 15 Terrain Destroyed 132 | . 3 . 129 Melee . | . . . . Projectile 3 | . 3 . . AOE 129 | . . . 129 Terrain Rammed . | . . . . Walls Destroyed . | . . . . Machines Disabled . | . . . . Actions | -11 -10 -10 -9 --------- Run | Scr Mat Min Mat Total 1065 | 79 458 169 359 Wait 170 | . 140 12 18 Move 710 | 59 275 151 225 Hop . | . . . . Pick Up 21 | 6 11 1 3 Fast Attach 28 | 6 . . 22 Attach 4 | 1 . . 3 Detach 1 | . . . 1 Swap 16 | . 7 2 7 Drop 14 | . 5 1 8 Fire 99 | 7 20 . 72 Melee 2 | . . 2 . Ram . | . . . . Kick . | . . . . Crush . | . . . . Escape Stasis . | . . . . Rewire . | . . . . Trap . | . . . . Miscellaneous . | . . . . Route ------- -11/Scrapyard -10/Materials (discovered 2 exits: *Mat / [*Min]) -10/Mines -9/Materials History --------- Turn | Location | Event 5 | -11/Scrapyard | Discovered new exit (range 15) 107 | -11/Scrapyard | Entered Materials 251 | -10/Materials | Discovered new exit (range 15) 310 | -10/Materials | Build established: Mutant 775 | -10/Materials | Discovered new exit (range 7) 786 | -10/Materials | Entered Mines 1032 | -10/Mines | Discovered new exit (range 8) 1079 | -10/Mines | Entered Materials 1079 | -9/Materials | Accompanied by 2 allies 1079 | -9/Materials | Evolved 2 slots: Propulsion x2 1084 | -9/Materials | Led the pair of lost Derelicts to an unsafe place 1246 | -9/Materials | Destroyed 12 combat bots 1275 | -9/Materials | Lost 7 parts (1p3n1u2w) 1353 | -9/Materials | Core integrity fell below 50% 1559 | -9/Materials | Core integrity fell below 20% 1583 | -9/Materials | Lost 5 parts (2n3w) 1652 | -9/Materials | Destroyed by Y-45 Defender with Beam Rifle Last Messages --------------- 01579_ Acquired Sml. Laser. 01595_ K-01 Serf collects debris. 01597_ Acquired Lgt. Treads. 01597_ K-01 Serf collects debris. 01599_ Acquired 19 matter. 01600_ K-01 Serf collects debris. 01603_ Acquired 18 matter. 01604_ K-01 Serf collects debris. 01605_ Acquired 20 matter. 01607_ K-01 Serf collects debris. 01613_ Discarded Transport Network Coupler. 01615_ Acquired Lgt. Armor Plating. 01619_ Dropped Sml. Laser. 01619_ Acquired Hvy. Assault Rifle. 01633_ Flight Unit destroyed. 01633_ Aluminum Leg destroyed. 01636_ S-10 Pest destroyed. 01646_ Lgt. Armor Plating destroyed. 01646_ EM Shotgun destroyed. 01651_ U-05 Engineer lays Concrete. Map ----- +----------------------------------------------------+ | ???????????????????????????????????????????????? | | ???????????????????????????????????????????????? | | ???????????????????????????????????????????????? | | ???????????????????????????????????????????????? | | ???????????????????????????????????????????????? | | ???????????????????????????????????????????????? | | ???????????????????????????????????????????????? | | ???????????????????????????????????????????????? | | ##?????????????????????????????????????????????? | | #?????????????????????????????????????????????? | | #?????????????????????#####???????????????????? | | #????????????????????? ??????????????????? | | #????????? ??????????? ??????????????????? | | #????????? ??????????? ?????????????????? | | #????????? ???????????#[[[ ????????????????? | | ##???????? #??????????#[[[ ?????????????????? | | #???#???? #?????###??#[[ ??????????????????? | | #???#???? #??####T#### ??????????????????? | | #???????# #??# ## [???????????????????? | | #???????# #??# !## #???????????????????? | | * #???????# #??# [ ## #???????????????????? | | *=#???????# #??# *** %## #???????????????????? | | ! #?#####?# #??# [ =!## #???????????????????? | | #### ### ####!%=[ ## ##??????????????????? | | ### #### ########+## #??????????????????? | | !==* @ #??????????????????? | | [u + +?????????? | | #?????????? | | ## ##############+# #?????????? | | ######### # ##???? # + ???????? | | #???????######???"" # # # ???????? | | #?????????????? """ # #?########?????????? | | ##????????????# S" ## #??????????????????? | | #????????????? ?# ##??????????????????? | | #????????????# ? ?# #???????????????????? | | #????????????####????# #???????????????????? | | #????????????????????# #???????????????????? | | #????????????????????#%* #???????????????????? | | ###???#????????????????#s= #???????????????????? | | ????????????????????????*= ???????????????????? | | ???????????????????????? Y ???????????????????? | | ???????????????????????? ???????????????????? | | ??????#????????????????? ????????????????????? | | ???????????????????????????????????????????????? | | ????? ?????????????????????????????????????????? | | ???????????????????????????????????????????????? | | ???????????????????????????????????????????????? | | ???????????????????????????????????????????????? | | ????? ?????????????????????????????????????????? | | ???????????????????????????????????????????????? | +----------------------------------------------------+ Best States ------------- Heat Dissipation 28 Energy Generation 14 Energy Capacity 280 Matter Stores 293 Matter Capacity 300 Sight Range 16 Robot Scan Range 10 Terrain Scan Range 16 Terrain Scan Density 10 Armor Coverage 150 Utility Shielding 33 Evasion (%) 42 Recoil Reduction 1 Item Schematics ----------------- None Robot Schematics ------------------ None Fabricated ------------ Nothing Alien Tech Used ----------------- None Achievements -------------- None Challenges ------------ None Game ------ Seed SignalCannonField Manual? 0 Play Time 00:22:49 Cumulative 86.5 hours Start 2021.03.01 @ 15:49:24 End 2021.03.01 @ 16:15:43 Sessions 1 Manual Loads 0 Difficulty Rogue Special Mode None Game No. 146 Rogue 146 Adventurer 0 Explorer 0 Win Type - Total 0 Types 0/0/0/0/0/0/0/0/0 Lore% 46 Gallery% 50 Achievement% 33 Wizard Run 0 Options --------- ASCII 1 Keyboard 0 Movement Mouse Keybinds 0 Fullscreen 1 Font 10/Smallcaps Map View 72x50 Tactical HUD 1 Map Filters NONE Filters NONE Steam 1 RUN: b77f126b-a826-491e-a798-0a44dc9c1316